Cogmind - Beta 11.1 @@@ ROGUE MODE // 2022.09.21 @ 12:30:43 Player: Zirov Result: Self-destructed Performance ------------- Evolutions (2) 1000 Regions Visited (5) 1000 Robots Destroyed (13) 65 Value Destroyed (244) 244 Prototype IDs (3) 60 Alien Tech Used (0) 0 Bonus (300) 300 TOTAL SCORE: 2669 Bonus ------- Aligned with FarCom 300 Cogmind --------- Core Integrity 509/550 Matter 300/300 Energy 100/100 System Corruption 0% Temperature Cool (0) Movement Flying (200) Ox2 Location -8/Materials Parts ------- > --- POWER (1) -------- (None) > --- PROPULSION (4) --- Flight Unit > --- UTILITY (4) ------ Small Storage Unit Weight Redist. System Advanced Visual Processing Unit Tractor Beam > --- WEAPON (2) ------- Flail Flail > --- INVENTORY (8) ---- Light Deuterium Engine Medium Storage Unit High-capacity Matter Pod (200) Cloak of Protection Improved Assault Rifle Light Cannon Peak State ------------ > --- POWER ------------ Light Ion Engine > --- PROPULSION ------- Flight Unit Flight Unit Flight Unit Flight Unit > --- UTILITY ---------- Small Storage Unit Weight Redist. System Cloak of Protection > --- WEAPON ----------- Flail Flail > --- INVENTORY -------- Flight Unit High-capacity Matter Pod Seismic Detector Tractor Beam Light Cannon [Rating: 20] Favorites ----------- Power Light Ion Engine Engine Light Ion Engine Propulsion Flight Unit Leg Aluminum Leg Flight Unit Flight Unit Utility Small Storage Unit Device Weight Redist. System Storage Small Storage Unit Processor Advanced Visual Processing Unit Weapon Flail Ballistic Gun Assault Rifle Impact Weapon Flail Build | -11 -10 -10 -10 -9 -8 ------- Run | Scr Mat Min Exi Min Mat Slots Evolved 4 | . . . . . 4 Power . | . . . . . . Propulsion 2 | . . . . . 2 Utility 2 | . . . . . 2 Weapon . | . . . . . . Parts Attached 28 | 6 12 2 . . 8 Power 3 | 1 1 . . . 1 Engine 3 | 1 1 . . . 1 Core . | . . . . . . Reactor . | . . . . . . Propulsion 10 | 2 5 . . . 3 Treads . | . . . . . . Leg 2 | 2 . . . . . Wheel . | . . . . . . Hover . | . . . . . . Flight 8 | . 5 . . . 3 Utility 10 | 1 3 2 . . 4 Device 7 | . 3 1 . . 3 Storage 1 | 1 . . . . . Processor 2 | . . 1 . . 1 Hackware . | . . . . . . Protection . | . . . . . . Artifact . | . . . . . . Weapon 5 | 2 3 . . . . Energy Gun . | . . . . . . Energy Cannon . | . . . . . . Ballistic Gun 3 | 2 1 . . . . Ballistic Cannon . | . . . . . . Launcher . | . . . . . . Special Weapon . | . . . . . . Impact Weapon 2 | . 2 . . . . Slashing Weapon . | . . . . . . Piercing Weapon . | . . . . . . Special Melee Weapon . | . . . . . . Unidentified Prototypes 1 | . . . . . 1 Parts Lost 9 | . 3 . . . 6 Power 1 | . . . . . 1 Propulsion 5 | . 1 . . . 4 Utility 1 | . . . . . 1 Weapon 2 | . 2 . . . . Highest Loss Streak 4 | . 3 . . . 4 To Critical Strikes . | . . . . . . Average Slot Usage (%) 91 | . 86 100 100 100 92 Engine 13 | . 14 14 14 14 9 Leg 8 | . 16 . . . . Flight 19 | . 10 28 28 28 31 Device 12 | . 8 14 14 14 21 Storage 13 | . 14 14 14 14 9 Ballistic Gun 8 | . 16 . . . . Impact Weapon 14 | . 4 28 28 28 18 Naked Turns . | . . . . . . Heaviest Build 16 | 14 15 12 12 12 16 Greatest Support 20 | 20 20 14 14 14 16 Greatest Overweight (x) 3 | . 3 . . . 1 Average Overweight (x) . | . . . . . . Largest Inventory Capacity 8 | 8 8 8 8 8 8 Average Capacity 7 | 6 8 8 8 8 8 Most Carried 8 | 1 8 8 8 8 7 Average Carried 4 | . 3 7 7 8 5 Final Capacity 8 | 8 8 8 8 8 8 Final Carried 8 | 1 8 7 8 8 6 Class Distribution -------------------- 89% | Mutant 10% | Scavenger-Sprinter Dominant Class ---------------- Mutant | -10/Materials Mutant | -10/Mines Mutant | -10/Exiles Mutant | -9/Mines Scavenger-Sprinter | -8/Materials Resources | -11 -10 -10 -10 -9 -8 ----------- Run | Scr Mat Min Exi Min Mat Matter Collected 781 | 241 175 . 295 . 70 Remotely 70 | . . . . . 70 Salvage Created 344 | 29 209 . . . 106 Parts 15 | 1 9 . . . 5 Haulers Intercepted 1 | . . . . . 1 Recyclers Shooed . | . . . . . . Parts Field Recycled . | . . . . . . Retrieved Matter . | . . . . . . Parts Self-Destructed . | . . . . . . Prevented . | . . . . . . Kills | -11 -10 -10 -10 -9 -8 ------- Run | Scr Mat Min Exi Min Mat Combat Hostiles Destroyed 10 | . 6 . . . 4 Melee 2 | . 1 . . . 1 Guns 4 | . 4 . . . . Classes Destroyed 5 | 1 3 . . . 1 Tunneler 1 | 1 . . . . . Hauler 1 | . . . . . 1 Operator 1 | . 1 . . . . Swarmer 6 | . 2 . . . 4 Grunt 4 | . 4 . . . . Best Kill Streak 4 | 1 4 . . . 2 Combat Bots Only 4 | . 4 . . . 2 Max Kills in Single Turn 2 | 1 2 . . . 1 Gunslinging 1 | . 1 . . . . Exploded . | . . . . . . Melee 1 | . 1 . . . 1 Uniques/NPCs Destroyed . | . . . . . . Combat | -11 -10 -10 -10 -9 -8 -------- Run | Scr Mat Min Exi Min Mat Damage Taken 1028 | . 706 78 . . 244 Core 222 | . 132 49 . . 41 Absorbed by Shields . | . . . . . . Core Remaining (%) 63 | 100 . . . 27 . Volleys Fired 22 | 5 17 . . . . Largest 2 | 2 2 . . . . Hottest 40 | 40 40 . . . . Shots Fired 42 | 10 32 . . . . Gun 42 | 10 32 . . . . Cannon . | . . . . . . Launcher . | . . . . . . Special . | . . . . . . Kinetic 42 | 10 32 . . . . Thermal . | . . . . . . Explosive . | . . . . . . Electromagnetic . | . . . . . . Robot Hit Streak 7 | 2 7 . . . . Robot Miss Streak 3 | 1 3 . . . . Penetration Max . | . . . . . . Secondary Targets 2 | . 2 . . . . Max Gunslinging Chain 1 | . 1 . . . . Shots Hit Robots 43 | 6 25 . . . 12 Core Hits 9 | 1 7 . . . 1 Critical Kills . | . . . . . . Critical Parts Destroyed 6 | . 2 . . . 4 Critical Strikes 6 | . 2 . . . 4 Smash 6 | . 2 . . . 4 Melee Attacks 21 | . 3 . . . 18 Impact 21 | . 3 . . . 18 Slashing . | . . . . . . Piercing . | . . . . . . Sneak Attacks 2 | . 1 . . . 1 Combat Hostiles . | . . . . . . Follow-up Attacks 2 | . . . . . 2 Damage Inflicted 974 | 80 392 . . . 502 Guns 384 | 80 304 . . . . Cannons . | . . . . . . Explosions . | . . . . . . Melee 590 | . 88 . . . 502 Ramming . | . . . . . . Kinetic 384 | 80 304 . . . . Thermal . | . . . . . . Explosive . | . . . . . . Electromagnetic . | . . . . . . Impact 590 | . 88 . . . 502 Slashing . | . . . . . . Piercing . | . . . . . . Highest Corruption . | . . . . . . Average Corruption . | . . . . . . Corruption Purged . | . . . . . . Corruption Blocked . | . . . . . . Overload Shots . | . . . . . . Overflow Damage 256 | . 58 . . . 198 Projectiles . | . . . . . . Explosions . | . . . . . . Melee 256 | . 58 . . . 198 Knockbacks 1 | . 1 . . . . Impact 1 | . 1 . . . . Kinetic . | . . . . . . Secondary . | . . . . . . Self-Inflicted Damage . | . . . . . . Shots . | . . . . . . Rammed . | . . . . . . Targets Rammed . | . . . . . . Kicked . | . . . . . . Crushed . | . . . . . . Highest Temperature 21 | . 21 15 . . . Average Temperature 7 | . 7 9 . . . Received Heat Transfer 318 | . 261 48 . . 9 Siege Activations . | . . . . . . Robots Corrupted . | . . . . . . Combat Hostiles . | . . . . . . Parts Fried 3 | . 2 . . . 1 Impact Corruptions 12 | . 3 . . . 9 Robots Melted . | . . . . . . Combat Hostiles . | . . . . . . Parts Melted . | . . . . . . Heat Transferred . | . . . . . . Parts Sabotaged . | . . . . . . Parts Stolen . | . . . . . . Parts Stripped . | . . . . . . Power Chain Reactions . | . . . . . . Missiles Intercepted . | . . . . . . Alert | -11 -10 -10 -10 -9 -8 ------- Run | Scr Mat Min Exi Min Mat Peak Influence 202 | 5 201 153 . . 202 Initial 78 | . 3 78 . . . Average 60 | . 61 113 . . 60 Maximum Alert Level 1 | . 1 . . . 1 Low Security (%) 98 | 100 98 100 . 100 94 Level 1 1 | . 1 . . . 5 Level 2 . | . . . . . . Level 3 . | . . . . . . Level 4 . | . . . . . . Level 5 . | . . . . . . High Security . | . . . . . . Max Security . | . . . . . . Squads Dispatched 2 | . 2 . . . . Investigation 1 | . 1 . . . . Extermination . | . . . . . . Reinforcement 1 | . 1 . . . . Assault . | . . . . . . Garrison . | . . . . . . Intercept . | . . . . . . Searches Triggered . | . . . . . . Construction Impeded . | . . . . . . Haulers Reinforced . | . . . . . . Active Scanning Responses . | . . . . . . Cargo Convoy Interrupts . | . . . . . . Stealth | -11 -10 -10 -10 -9 -8 --------- Run | Scr Mat Min Exi Min Mat Distress Signals 1 | . 1 . . . . Communications Jammed . | . . . . . . Distress Signals . | . . . . . . Times Spotted 31 | . 11 6 . . 14 Peak Tracking Total 6 | . 6 4 . . 6 Tactical Retreats 5 | . 1 2 . . 2 Traps | -11 -10 -10 -10 -9 -8 ------- Run | Scr Mat Min Exi Min Mat Traps Triggered 1 | . 1 . . . . Indirectly . | . . . . . . Trap Hack Attempts . | . . . . . . Triggered . | . . . . . . Disarmed . | . . . . . . Reprogrammed . | . . . . . . Reused . | . . . . . . Traps Extracted . | . . . . . . Installed . | . . . . . . Triggered . | . . . . . . Machines | -11 -10 -10 -10 -9 -8 ---------- Run | Scr Mat Min Exi Min Mat Machines Disabled 1 | . 1 . . . . Max in Single Turn 1 | . 1 . . . . Machines Sabotaged . | . . . . . . Garrisons Compromised . | . . . . . . Overloaded Fab Kills . | . . . . . . Hacking | -11 -10 -10 -10 -9 -8 --------- Run | Scr Mat Min Exi Min Mat Machines Accessed 7 | . 5 . . . 2 Terminals 6 | . 4 . . . 2 Fabricators . | . . . . . . Repair Stations . | . . . . . . Recycling Units 1 | . 1 . . . . Scanalyzers . | . . . . . . Garrison Access . | . . . . . . Total Hacks 21 | . 17 . . . 4 Successful 7 | . 6 . . . 1 Failed 14 | . 11 . . . 3 Catastrophic 3 | . 1 . . . 2 Database Lockouts . | . . . . . . Manual 9 | . 5 . 1 . 3 Terminals 20 | . 16 . . . 4 Fabricators . | . . . . . . Repair Stations . | . . . . . . Recycling Units 1 | . 1 . . . . Scanalyzers . | . . . . . . Garrison Access . | . . . . . . Terminal Hacks 6 | . 5 . . . 1 Robot Analysis 1 | . 1 . . . . Prototype ID Bank 1 | . 1 . . . . Branch Access Points 1 | . 1 . . . . Alert Level 1 | . 1 . . . . Hauler Manifests 1 | . 1 . . . . Zone Layout 1 | . . . . . 1 Fabricator Hacks . | . . . . . . Repair Station Hacks . | . . . . . . Recycling Unit Hacks 1 | . 1 . . . . Report Inventory 1 | . 1 . . . . Scanalyzer . | . . . . . . Garrison Access Hacks . | . . . . . . Unauthorized Hacks . | . . . . . . Terminals . | . . . . . . Fabricators . | . . . . . . Repair Stations . | . . . . . . Recycling Units . | . . . . . . Scanalyzers . | . . . . . . Garrison Access . | . . . . . . Data Cores Recovered . | . . . . . . Used . | . . . . . . Hacking Detections 6 | . 4 . . . 2 Full Trace Events 2 | . 1 . . . 1 Feedback Events . | . . . . . . Feedback Blocked . | . . . . . . Robot Schematics Acquired . | . . . . . . Robots Built . | . . . . . . Authchips . | . . . . . . Time . | . . . . . . Total Robot Build Rating . | . . . . . . Part Schematics Acquired . | . . . . . . Parts Built . | . . . . . . Authchips . | . . . . . . Time . | . . . . . . Total Part Build Rating . | . . . . . . Parts Repaired . | . . . . . . Time . | . . . . . . Parts Recycled . | . . . . . . Recycled Matter . | . . . . . . Retrieved Matter . | . . . . . . Retrieved Components . | . . . . . . Parts Scanalyzed . | . . . . . . Part Schematics Acquired . | . . . . . . Parts Damaged . | . . . . . . Bothacking | -11 -10 -10 -10 -9 -8 ------------ Run | Scr Mat Min Exi Min Mat Used RIF Installer . | . . . . . . Robots Hacked . | . . . . . . Non-combat . | . . . . . . Combat . | . . . . . . Robot Hacks Applied . | . . . . . . Relay Couplers Released . | . . . . . . Fabnet Peak Effective % . | . . . . . . Robots Rewired . | . . . . . . Allies Hacked . | . . . . . . Hacks Repelled . | . . . . . . Allies | -11 -10 -10 -10 -9 -8 -------- Run | Scr Mat Min Exi Min Mat Total Allies . | . . . . . . Largest Group . | . . . . . . Highest-Rated Group . | . . . . . . Highest-Rated Ally . | . . . . . . Total Orders . | . . . . . . Ally Attacks . | . . . . . . Total Damage . | . . . . . . Kills . | . . . . . . Allies Corrupted . | . . . . . . Allies Melted . | . . . . . . Intel | -11 -10 -10 -10 -9 -8 ------- Run | Scr Mat Min Exi Min Mat Robot Analysis Total 1 | . 1 . . . . Derelict Logs Recovered . | . . . . . . Drone Launches . | . . . . . . Drone Recoveries . | . . . . . . Exploration | -11 -10 -10 -10 -9 -8 ------------- Run | Scr Mat Min Exi Min Mat Turns Passed 779 | 82 362 103 87 11 134 Spaces Moved 1170 | 50 423 267 231 30 169 Core 4 | 3 1 . . . . Treads . | . . . . . . Legs 168 | 47 121 . . . . Wheels . | . . . . . . Hover . | . . . . . . Flight 998 | . 301 267 231 30 169 Fastest Speed 31 | 50 37 37 37 37 31 Average Speed 49 | 115 61 37 37 37 35 Slowest Speed 280 | 120 280 37 37 37 114 Overloaded Moves . | . . . . . . Propulsion Burnouts . | . . . . . . Robots Hopped 7 | . 5 . . . 2 Cave-ins Triggered . | . . . . . . Exploration Rate (%) 34 | 4 67 41 62 13 18 Regions Visited 5 Branch Regions 3 Pre-discovered Areas . | . . . . . . Known Exits Taken 1 | . 1 . . . . Unknown Exits Taken 4 | 1 . 1 1 1 . Scrap Searched . | . . . . . . Spaces Dug . | . . . . . . Terrain Destroyed . | . . . . . . Melee . | . . . . . . Projectile . | . . . . . . AOE . | . . . . . . Terrain Rammed . | . . . . . . Walls Destroyed . | . . . . . . Machines Disabled . | . . . . . . Actions | -11 -10 -10 -10 -9 -8 --------- Run | Scr Mat Min Exi Min Mat Total 1286 | 61 481 269 231 29 215 Wait 35 | . 14 1 . . 20 Move 1151 | 49 412 266 230 29 165 Hop 7 | . 5 . . . 2 Pick Up 13 | 1 8 . 1 . 3 Fast Attach 16 | 6 9 . . . 1 Attach 6 | . 1 . . . 5 Detach 4 | . 4 . . . . Swap 6 | . 2 2 . . 2 Drop 7 | . 6 . . . 1 Fire 22 | 5 17 . . . . Melee 19 | . 3 . . . 16 Ram . | . . . . . . Kick . | . . . . . . Crush . | . . . . . . Escape Stasis . | . . . . . . Rewire . | . . . . . . Trap . | . . . . . . Miscellaneous . | . . . . . . Route ------- -11/Scrapyard -10/Materials (discovered 3 exits: *Mat x2 / *Min) -10/Mines (discovered 2 exits: *Mat / *Exi) -10/Exiles (discovered 2 exits: [*Min x2]) -9/Mines -8/Materials History --------- Turn | Location | Event 10 | -11/Scrapyard | Discovered new exit (range 15) 83 | -11/Scrapyard | Entered Materials 216 | -10/Materials | Discovered new exit (range 7) 219 | -10/Materials | Identified exit to Mines 309 | -10/Materials | Core integrity fell below 50% 323 | -10/Materials | Lost 3 parts (1n2w) 373 | -10/Materials | Discovered new exit (range 15) 374 | -10/Materials | Build established: Mutant 445 | -10/Materials | Entered Mines 449 | -10/Mines | Discovered new exit (range 4) 451 | -10/Mines | Identified exit to Materials 467 | -10/Mines | Received a Rocket Launcher from a helpful Derelict 543 | -10/Mines | Deemed a non-threat by the Exiles lab entrance 543 | -10/Mines | Discovered new exit (range 5) 548 | -10/Mines | Entered Exiles 553 | -10/Exiles | Discovered new exit (range 15) 558 | -10/Exiles | Met 8R-AWN 564 | -10/Exiles | Met EX-HEX 575 | -10/Exiles | Met EX-BIN 579 | -10/Exiles | Aligned with FarCom system 580 | -10/Exiles | Given EX-Vault access code 588 | -10/Exiles | Opened EX-Vault 590 | -10/Exiles | Found Prototype Device 599 | -10/Exiles | Warned to stay clear of 0b10 Research branches 609 | -10/Exiles | Met EX-DEC 631 | -10/Exiles | Discovered new exit (range 10) 635 | -10/Exiles | Left Exiles lab with Cloak of Protection 635 | -10/Exiles | Entered Mines 643 | -9/Mines | Discovered new exit (range 11) 646 | -9/Mines | Entered Materials 646 | -8/Materials | Evolved 4 slots: Propulsion x2, Utility x2 648 | -8/Materials | Identified Cloak of Protection 780 | -8/Materials | Self-destructed Last Messages --------------- 00745_ Flight Unit destroyed. 00746_ S-10 Pest suffers critical hit (Smash). 00746_ Destroyed Flight Unit. 00746_ Destroyed Lgt. Ion Engine. 00746_ S-10 Pest system corrupted by crushing effect. 00747_ S-10 Pest system terminally corrupted. 00751_ S-10 Pest suffers critical hit (Smash). 00751_ Destroyed Lgt. Assault Rifle. 00751_ S-10 Pest system corrupted by crushing effect. 00764_ Flail follow-up attack on S-10 Pest. 00765_ Flight Unit destroyed. 00769_ S-10 Pest suffers critical hit (Smash). 00769_ Destroyed Lgt. Ion Engine. 00769_ S-10 Pest system corrupted by crushing effect. 00769_ Flight Unit fried. 00769_ S-10 Pest destroyed. 00776_ Flight Unit destroyed. 00777_ Destroyed Heat Sink. 00777_ Y-45 Defender system corrupted by crushing effect. 00780_ Lgt. Deuterium Engine destroyed. Map ----- +----------------------------------------------------+ | ?????????????????????????????? | | ?????????????????????????????? | | ?????????????????????????????? | | ?????????????????????????????? | | ?????????????????????????????? | | ?????????????????????????????? | | ?????????????????????????????? | | ?????????????????????????????? | | ???????????????H?????????????? | | ?????????????????????????????? | | ?????????????????????????????? | | ?????????????????????????????? | | ?????????????????????????????? | | ?????????????????????????????? | | ?????????????????????????????? | | ?????????????????????????????? | | ?????????????????????????????? | | ?????????????????????????????? | | ?????????????????????????????? | | #######??????????????????????? | | # #??????????????????????? | | # #??????????????????????? | | # """ #??????????????????????? | | # """ #????????###???????????? | | # """ ###### #???????????? | | # @# #???????????? | | #[ +% + #????? | | # #Y #???????????? | | # " "%### ## ! # #????? | | # "G" #?? #########+#######??? | | # " #?? #???????# # "T" #??? | | # % #?? ######### # #??? | | ####/##?# ## # # #??? | | ???#s#??# ## # # #### | | ???# #??# ## """ # ##+##### | | ???#s#### ## """ + | | ???# ## """ ########## | | ???# ## #?# ## | | ???# ########### "Y" ## | | ???# ### ## """ ## | | ???# # """ ## ## | | ???# # """ ######+### | | ???# + """ ##### ## | | ???# # + T | | ???# # = ##### ## | | ???#### ########???## ### | | ??????# #???????????# #?# | | ??????# ############# #?# | | ??????# #?# | | ??????# ##########?# | +----------------------------------------------------+ Best States ------------- Heat Dissipation 31 Energy Generation 14 Energy Capacity 250 Matter Stores 300 Matter Capacity 300 Sight Range 20 Terrain Scan Density 10 Additional Mass Support 6 Evasion (%) 63 Item Schematics ----------------- None Robot Schematics ------------------ None Fabricated ------------ Nothing Alien Tech Used ----------------- None Achievements -------------- None Challenges ------------ None Game ------ Seed StasisFluxFrame Manual? 0 Play Time 00:19:37 Cumulative 13.1 hours Start 2022.09.20 @ 17:05:52 End 2022.09.21 @ 12:30:43 Sessions 3 Manual Loads 0 Difficulty Rogue Special Mode None Game No. 13 Rogue 13 Adventurer 0 Explorer 0 Win Type - Total 0 Types 0/0/0/0/0/0/0/0/0 Lore% 11 Gallery% 18 Achievement% 18 Wizard Run 0 Options --------- ASCII 1 Keyboard 1 Movement Numpad Keybinds 0 Fullscreen 1 Font 18/SmallcapsGlow Map View 76x50 Tactical HUD 1 Map Filters NONE Filters NONE Steam 1 RUN: 8328c9a5-bede-4ad6-abf9-158ff2ac1ffc